[Event "Portuguese-ch U14-20 2022"]
[Site "Fatima"]
[Date "2022.04.13"]
[Round "6.1"]
[White "Martins, Bruno Andre Leite"]
[Black "Monteiro, Paulo Alexandre G"]
[Result "1/2-1/2"]
[ECO "B60"]
[WhiteElo "2323"]
[BlackElo "2032"]
[Annotator "TA"]
[PlyCount "59"]
[EventDate "2022.04.10"]
[EventType "swiss"]
[EventCountry "POR"]
[SourceTitle "playchess.com"]
[Source "ChessBase"]
[SourceQuality "1"]
[TimeControl "5400+30"]

{[%evp 13,59,48,48,54,65,39,40,0,37,35,35,39,39,35,39,33,26,30,48,47,42,38,67,23,32,19,34,17,15,0,0,0,0,0,0,0,0,-16,0,0,0,0,0,0,0,-6,-1,-12]} 1. e4 {[%emt 0:06:03]} c5 {[%emt 0:00:09]} 2. Nf3 {[%emt 0:00:08]} d6 {[%emt 0:00:09]} 3. d4 {[%emt 0:00:09]} cxd4 {[%emt 0:00:07]} 4. Nxd4 {[%emt 0:00:04]} Nf6 {[%emt 0:00:07]} 5. Nc3 {[%emt 0:00:03]} Nc6 {[%emt 0:00:36]} 6. Bg5 {[%emt 0:01:55]} g6 {[%emt 0:00:14]} 7. Bxf6 {[%emt 0:04:42]} exf6 {[%emt 0:00:09]} 8. Bb5 {[%emt 0:09:09] B60: Sicilian: Richter-Rauzer: Unusual Black 6th moves and 6...Bd7 without 7 Qd2.} Bd7 {[%emt 0:14:11]} 9. O-O {[%emt 0:03:27] &Bianco is more active. 9.Nde2 injects fresh life into this line.} Bg7 {[%emt 0:05:32]} 10. Ba4 {[%emt 0:12:34] [#] White is slightly better.} f5 $146 {[%emt 0:21:41]} ({Predecessor:} 10... O-O 11. Nxc6 Bxc6 12. Bb3 f5 13. exf5 Bxc3 14. bxc3 Qg5 15. Bd5 Qxf5 16. Bxc6 bxc6 17. Qxd6 Qxc2 18. Qxc6 {0-1 (28) Bodnar,N (2438)-Kryakvin,D (2570) Chess.com INT 2021}) 11. Nxc6 {[%emt 0:09:11]} Bxc6 {[%emt 0:00:56]} 12. Bxc6+ {[%emt 0:04:47]} bxc6 {[%emt 0:00:07]} 13. exf5 {[%emt 0:00:08]} O-O {[%emt 0:01:24]} 14. Qf3 {[%emt 0:13:03]} d5 {[%emt 0:07:32]} 15. Rab1 {[%emt 0:04:32]} a5 {[%emt 0:11:30]} 16. Na4 {[%emt 0:15:47][%cal Bc3a4,Ba4c5,Bc5d3][%mdl 32]} Rb8 {[%emt 0:18:31][%cal Ba8b8,Bb8b4,Bb4e4][%mdl 32]} 17. b3 {[%emt 0:02:04]} Rb4 {[%emt 0:04:30]} 18. Nc5 {[%emt 0:05:50]} Qd6 {[%emt 0:02:43]} 19. Nd3 {[%emt 0:01:12]} Re4 {[%emt 0:00:44]} 20. Rfe1 {[%emt 0:03:48]} Rfe8 {[%emt 0:01:14] The position is equal.} 21. Qg3 {[%emt 0:00:41]} Qxg3 {[%emt 0:04:47]} 22. hxg3 {[%emt 0:00:09]} gxf5 {[%emt 0:00:24]} 23. f3 {[%emt 0:00:54]} R4e6 {[%emt 0:02:34]} 24. Rxe6 {[%emt 0:01:29]} fxe6 $11 {[%emt 0:00:55][%mdl 4096] Endgame KRB-KRN} 25. f4 {[%emt 0:00:16]} e5 {[%emt 0:00:26]} 26. fxe5 {[%emt 0:00:20]} Bxe5 {[%emt 0:00:19]} 27. Nxe5 {[%emt 0:00:35]} Rxe5 {[%emt 0:00:05]} 28. Kf2 {[%emt 0:00:18] Inhibits Re2+.} Kf7 {[%emt 0:00:35]} 29. Rd1 {[%emt 0:00:32]} Re4 {[%emt 0:00:53]} 30. Kf3 {[%emt 0:00:12] Weighted Error Value: White=0.08 (flawless) /Black=0.06 (flawless)} 1/2-1/2

[Event "Portuguese-ch U14-20 2022"]
[Site "Fatima"]
[Date "2022.04.13"]
[Round "6.2"]
[White "Ribeiro, Orlando"]
[Black "Leao, Tiago Miguel Da Silv"]
[Result "1-0"]
[ECO "B47"]
[WhiteElo "1945"]
[BlackElo "2131"]
[Annotator "TA"]
[PlyCount "63"]
[EventDate "2022.04.10"]
[EventType "swiss"]
[EventCountry "POR"]
[SourceTitle "playchess.com"]
[Source "ChessBase"]
[SourceQuality "1"]
[TimeControl "5400+30"]

{[%evp 19,63,16,20,29,32,4,21,-30,0,-42,0,-45,-44,-83,-15,-31,-23,-35,27,28,93,83,93,69,127,135,159,161,164,147,548,556,687,508,723,717,796,821,811,650,650,641,679,670,654,652]} 1. e4 c5 2. Nf3 e6 3. d4 cxd4 4. Nxd4 Nc6 5. Nc3 Qc7 6. g3 a6 7. Bg2 Nf6 8. O-O Nxd4 9. Qxd4 Bc5 10. Qd3 Ng4 {The main line 10...Ng4 scores better than 10...d6.} 11. Qe2 {B47: Sicilian: Taimanov: 5 Nc3 Qc7 6 f4, 6 g3 and 6 Be2.} h5 12. Bf4 d6 13. Rad1 ({Better is} 13. Bf3) 13... Ne5 14. h3 {[#]} b5 $146 ({Predecessor:} 14... Bd7 15. Be3 b5 16. Bxc5 Qxc5 17. Nb1 b4 18. Qd2 Bb5 19. Rfe1 Rd8 20. c3 a5 21. cxb4 Qxb4 {1-0 (41) Rakotomaharo,F (2422)-Babiy,O (2271) Chess.com INT 2020}) 15. Be3 Bb7 16. Nb1 Nc4 (16... h4 $17 {Threatens to win with ...hxg3.} 17. gxh4 Rxh4) 17. Bxc5 Qxc5 18. b3 Nb6 (18... Ne5 $15) 19. Rd3 $11 b4 (19... h4 $11) 20. Rfd1 $16 {[%cal Bf1d1,Bd1c1,Bc1c7][%mdl 32]} Rd8 21. Qd2 Nc8 ({Black should try} 21... h4 $14) 22. c3 a5 23. cxb4 axb4 24. Rd4 Ke7 $2 {[%mdl 8192] [#] This costs Black the game.} (24... h4 $16 {is tougher.}) 25. Rc1 $18 {White is clearly winning.} Qa7 26. Rxb4 Rd7 27. Qg5+ Kf8 {[#]} 28. Rc7 $1 {[%mdl 512]} f6 29. Rbxb7 Rxc7 30. Rxa7 Rxa7 31. Qc1 Ke7 32. a4 {Weighted Error Value: White=0.33/Black=0.75} 1-0

[Event "Portuguese-ch U14-20 2022"]
[Site "Fatima"]
[Date "2022.04.13"]
[Round "6.3"]
[White "Santos, Jose Miguel Sereno"]
[Black "Machado, Tomas Dias"]
[Result "1-0"]
[ECO "B30"]
[WhiteElo "1843"]
[BlackElo "2030"]
[Annotator "TA"]
[PlyCount "107"]
[EventDate "2022.04.10"]
[EventType "swiss"]
[EventCountry "POR"]
[SourceTitle "playchess.com"]
[Source "ChessBase"]
[SourceQuality "1"]
[TimeControl "5400+30"]

{[%evp 31,107,20,30,10,15,15,20,-2,27,15,18,6,20,13,6,6,6,16,8,16,20,8,46,33,68,33,114,47,75,65,300,304,301,294,283,275,329,131,136,126,240,240,263,269,327,310,321,321,325,324,320,316,338,314,445,375,509,506,745,692,708,683,883,0,620,621,605,435,1004,701,1135,826,1243,0,29956,6119,29986,29987]} 1. e4 {[%emt 0:03:18]} c5 {[%emt 0:00:23]} 2. Nf3 {[%emt 0:00:13][%cal Bg1f3,Bf3d4,Bd4b5][%mdl 32]} Nc6 {[%emt 0:00:07]} 3. Nc3 {[%emt 0:00:30]} d6 {[%emt 0:00:07]} 4. d4 {[%emt 0:00:08]} cxd4 {[%emt 0:00:08]} 5. Nxd4 {[%emt 0:00:05]} e5 {[%emt 0:00:30]} 6. Ndb5 {[%emt 0:01:26]} a6 {[%emt 0:00:18]} 7. Na3 {[%emt 0:00:08]} b5 {[%emt 0:00:07]} 8. Nd5 {[%emt 0:01:51]} Nf6 {[%emt 0:00:08]} 9. Bg5 {[%emt 0:02:50]} Be7 {[%emt 0:00:09][%cal Bf8e7,Be7f6,Bf6g5][%mdl 32]} 10. Bxf6 {[%emt 0:00:43]} Bxf6 {[%emt 0:00:09]} 11. c3 {[%emt 0:00:18]} Bg5 {[%emt 0:01:02]} 12. Be2 {[%emt 0:00:27]} O-O {[%emt 0:00:19]} 13. O-O {[%emt 0:01:08]} Be6 {[%emt 0:01:36]} 14. Nc2 {[%emt 0:02:21]} Rb8 {[%emt 0:02:53]} 15. Nce3 {[%emt 0:09:04]} Bxe3 {[%emt 0:08:45]} 16. Nxe3 {[%emt 0:00:09]} Ne7 {[%emt 0:02:00]} 17. Qd2 {[%emt 0:03:14] B33: Sicilian: Pelikan and Sveshnikov Variations.} Qb6 {[%emt 0:05:44]} 18. Rfd1 {[%emt 0:01:18]} Rfd8 {[%emt 0:00:52]} 19. Bf3 {[%emt 0:00:32] [#] The position is equal.} Rb7 $146 {[%emt 0:10:03]} ({Predecessor:} 19... a5 20. b3 Rbc8 21. Rac1 h6 22. Qd3 a4 23. c4 bxc4 24. Nxc4 Qb4 25. Be2 axb3 26. Qxb3 {0-1 (44) Schachinger,M (2278)-Gerhold,M (2219) Austria 2007}) 20. b3 {[%emt 0:19:38]} Rbd7 {[%emt 0:05:45]} 21. Rac1 {[%emt 0:14:00]} Kf8 {[%emt 0:05:07]} 22. c4 {[%emt 0:08:45]} Nc6 {[%emt 0:00:43]} 23. Bg4 {[%emt 0:01:45]} Bxg4 {[%emt 0:02:41]} 24. Nxg4 {[%emt 0:00:08]} Nd4 {[%emt 0:02:17]} 25. Ne3 {[%emt 0:02:06]} Qb7 {[%emt 0:07:14]} 26. Nd5 {[%emt 0:03:10]} b4 {[%emt 0:17:20]} 27. Qe3 {[%emt 0:02:22]} Rc8 {[%emt 0:03:59]} 28. Kf1 {[%emt 0:03:25]} a5 {[%emt 0:01:15]} (28... Kg8 $14) 29. f4 {[%emt 0:01:11]} (29. Qh3 $1 $16 {[%cal Rh3h7]} h6 30. Nb6 $1 {[%mdl 512]} Qxb6 31. Qxd7) 29... Rdd8 {[%emt 0:04:58]} 30. f5 {[%emt 0:00:28][%cal Bf4f5,Bf5f6][%mdl 32] f6 is the strong threat.} Rc5 $2 {[%emt 0:03:14]} ({Black should play} 30... f6 $1 $14) 31. f6 $18 {[%emt 0:01:31]} Rxd5 {[%emt 0:01:48]} 32. fxg7+ (32. exd5 Qd7 33. fxg7+ Kxg7 34. Qg5+ Kf8 $18) (32. cxd5 $6 gxf6 33. Kg1 Ke8 $16) 32... Kg8 {[%emt 0:00:16][%cal Od4c2] And now ...Nc2! would win.} 33. cxd5 {[%emt 0:02:13]} ({Don't play} 33. exd5 $6 f6 34. Rxd4 exd4 35. Qxd4 Re8 36. Qxf6 Qa7 $18) 33... f6 {[%emt 0:04:29]} 34. Rxd4 $2 {[%emt 0:01:49]} (34. Qh3 $18 {and White stays clearly on top.}) 34... exd4 $16 {[%emt 0:00:10]} 35. Qxd4 {[%emt 0:00:12]} Qxg7 $18 {[%emt 0:01:18][%mdl 4096] Endgame KQR-KQR} (35... Qe7 $16 36. Rc6 Re8) 36. Qb6 {[%emt 0:00:11][%csl LRa5,LRd8]} Qe7 {[%emt 0:01:24]} 37. Qxa5 {[%emt 0:00:26]} Re8 {[%emt 0:01:21]} 38. Qxb4 {[%emt 0:02:16]} Qe5 {[%emt 0:00:29] White must now prevent ...Qf4+.} 39. Kg1 {[%emt 0:01:14]} f5 {[%emt 0:00:34]} 40. Qc3 {[%emt 0:04:54]} Qxe4 {[%emt 0:00:42]} 41. Qd2 {[%emt 0:00:52]} f4 {[%emt 0:02:48]} 42. Rf1 {[%emt 0:00:31]} Rf8 {[%emt 0:00:44]} (42... Qe3+ {was necessary.} 43. Qxe3 fxe3) 43. b4 {[%emt 0:03:27]} Rf5 {[%emt 0:01:39]} 44. a4 {[%emt 0:02:04][%cal Ba2a4,Ba4a5,Ba5a6][%mdl 32]} h6 {[%emt 0:01:21]} 45. a5 {[%emt 0:01:04]} Qc4 {[%emt 0:00:40]} 46. Rc1 {[%emt 0:01:14]} Qe4 {[%emt 0:00:17]} 47. Rf1 {[%emt 0:00:53]} Qc4 {[%emt 0:00:21]} 48. Rf3 {[%emt 0:01:26]} Qe4 {[%emt 0:00:58]} 49. Kf2 {[%emt 0:00:16]} Kg7 {[%emt 0:02:31]} (49... Rg5 $142 50. g3 (50. Qxf4 Qc2+ 51. Ke1 Qb1+ 52. Kf2 Qc2+ 53. Kf1 Qb1+ 54. Kf2 Qc2+ $11) (50. Rxf4 $2 Qxg2+ 51. Ke1 Qg1+ 52. Rf1 Re5+ 53. Qe2 Qd4 $19) 50... fxg3+ 51. hxg3 Rf5 52. Rxf5 Qxf5+ 53. Kg2 Qe4+ 54. Kf2 Qf5+ 55. Kg2 Qe4+ 56. Kh2 Qc4) 50. a6 {[%emt 0:00:21] Strongly threatening Qd3.} Rxd5 {[%emt 0:00:58]} 51. Qxf4 {[%emt 0:00:39]} Qc2+ {[%emt 0:00:09] [#]} 52. Kg3 $2 {[%emt 0:00:16]} (52. Kg1 $1 $18 {Intending Qf8+ and mate.} Rd1+ 53. Rf1 Rxf1+ 54. Qxf1) 52... Rg5+ $2 {[%emt 0:01:07][%mdl 8192]} (52... Qg6+ $11 53. Kf2 Qc2+ 54. Kg1 Rd1+ 55. Rf1 Rxf1+ 56. Qxf1 Qa4) 53. Kh4 {[%emt 0:00:12] White wants to mate with Qf8+.} Qc7 {[%emt 0:00:31]} 54. Qf8+ {[%emt 0:00:22] Weighted Error Value: White=0.29 (precise) /Black=0.41} 1-0

[Event "Portuguese-ch U14-20 2022"]
[Site "Fatima"]
[Date "2022.04.13"]
[Round "6.4"]
[White "Oliveira, Beatriz Correia"]
[Black "Marques, Joao Goncalo B A"]
[Result "0-1"]
[ECO "D56"]
[WhiteElo "1558"]
[BlackElo "1418"]
[Annotator "NA RC"]
[PlyCount "62"]
[EventDate "2022.04.10"]
[EventType "swiss"]
[EventCountry "POR"]
[SourceTitle "playchess.com"]
[Source "ChessBase"]
[SourceQuality "1"]
[TimeControl "5400+30"]

1. d4 {[%emt 0:00:06]} d5 {[%emt 0:06:27]} 2. c4 {[%emt 0:00:15]} e6 {[%emt 0:00:08]} 3. Nf3 {[%emt 0:00:20]} Nf6 {[%emt 0:00:16]} 4. Nc3 {[%emt 0:00:34]} Be7 {[%emt 0:00:06]} 5. Bg5 {[%emt 0:00:45]} h6 {[%emt 0:00:22]} 6. Bh4 O-O {[%emt 0:00:55]} 7. e3 {[%emt 0:00:43]} Ne4 {[%emt 0:00:21]} 8. Bxe7 {[%emt 0:01:51]} Qxe7 {[%emt 0:00:10]} 9. Nxe4 {[%emt 0:02:28]} dxe4 {[%emt 0:00:08]} 10. Nd2 {[%emt 0:02:10]} e5 {[%emt 0:01:08]} 11. d5 {[%emt 0:09:51]} f5 {[%emt 0:01:14]} 12. Qc2 {[%emt 0:02:47]} Nd7 {[%emt 0:01:44]} 13. Be2 {[%emt 0:11:46]} Nf6 {[%emt 0:01:07]} 14. O-O {[%emt 0:02:27]} a5 {[%emt 0:06:47]} 15. a4 {[%emt 0:03:40]} Bd7 {[%emt 0:01:07]} 16. Rfd1 {[%emt 0:05:39]} Kh8 {[%emt 0:09:09]} 17. Rac1 {[%emt 0:07:29]} Be8 {[%emt 0:05:41]} 18. Nb1 {[%emt 0:09:44]} Rd8 {[%emt 0:07:28]} 19. Nc3 {[%emt 0:03:43]} Bg6 {[%emt 0:02:51]} 20. Nb5 {[%emt 0:03:33]} f4 {[%emt 0:02:18]} 21. Rd2 {[%emt 0:02:25]} Bh7 {[%emt 0:08:47]} 22. Qc3 {[%emt 0:03:51]} f3 {[%emt 0:02:12]} 23. gxf3 {[%emt 0:02:45]} exf3 {[%emt 0:00:32]} 24. Bxf3 {[%emt 0:01:52]} Ne4 {[%emt 0:02:27]} 25. Bxe4 {[%emt 0:10:54]} Bxe4 {[%emt 0:00:07]} 26. Re2 {[%emt 0:02:41]} Bf3 {[%emt 0:07:52]} 27. Rec2 {[%emt 0:01:18]} Qg5+ {[%emt 0:02:14]} 28. Kf1 {[%emt 0:00:13]} Qg2+ {[%emt 0:00:18]} 29. Ke1 {[%emt 0:00:08]} Qg1+ {[%emt 0:00:08]} 30. Kd2 {[%emt 0:00:22]} Qxf2+ {[%emt 0:00:07]} 31. Kd3 {[%emt 0:00:15]} Be4+ {[%emt 0:00:10]} 0-1

[Event "Portuguese-ch U14-20 2022"]
[Site "Fatima"]
[Date "2022.04.13"]
[Round "6.5"]
[White "Lanca, Luis"]
[Black "Voges, Guilherme"]
[Result "1/2-1/2"]
[ECO "B06"]
[WhiteElo "1316"]
[BlackElo "1657"]
[Annotator "NA RC"]
[PlyCount "136"]
[EventDate "2022.04.10"]
[EventType "swiss"]
[EventCountry "POR"]
[SourceTitle "playchess.com"]
[Source "ChessBase"]
[SourceQuality "1"]
[TimeControl "5400+30"]

1. e4 {[%emt 0:00:02]} g6 {[%emt 0:00:05]} 2. d4 {[%emt 0:00:14]} Bg7 {[%emt 0:00:04]} 3. Nc3 {[%emt 0:00:31]} d6 {[%emt 0:00:09]} 4. Be3 {[%emt 0:02:35]} Nf6 {[%emt 0:04:57]} 5. Bc4 {[%emt 0:02:31]} Ng4 {[%emt 0:07:04]} 6. Bc1 {[%emt 0:01:23]} c5 {[%emt 0:01:18]} 7. Bb5+ {[%emt 0:03:54]} Bd7 {[%emt 0:04:10]} 8. Qxg4 {[%emt 0:00:09]} Bxb5 {[%emt 0:00:11]} 9. Nxb5 {[%emt 0:00:04]} Qa5+ {[%emt 0:00:20]} 10. Nc3 {[%emt 0:00:17]} f5 {[%emt 0:03:40]} 11. Qe2 {[%emt 0:07:58]} Nc6 {[%emt 0:35:28]} 12. Qb5 {[%emt 0:01:29]} cxd4 {[%emt 0:00:47]} 13. Qxa5 {[%emt 0:00:11]} Nxa5 {[%emt 0:00:05]} 14. Nd5 {[%emt 0:07:23]} Rc8 {[%emt 0:01:01]} 15. exf5 {[%emt 0:31:29]} Rxc2 {[%emt 0:10:00]} 16. Nb4 {[%emt 0:06:03]} Rc4 {[%emt 0:05:06]} 17. Bd2 {[%emt 0:01:02]} gxf5 {[%emt 0:02:08]} 18. b3 {[%emt 0:04:50]} Rc5 {[%emt 0:03:57]} 19. Nd3 {[%emt 0:06:38]} Rb5 {[%emt 0:01:32]} 20. Bxa5 {[%emt 0:00:42]} Rxa5 {[%emt 0:00:15]} 21. Nf3 {[%emt 0:00:14]} e5 {[%emt 0:00:15]} 22. Nd2 {[%emt 0:12:27]} d5 {[%emt 0:04:41]} 23. O-O {[%emt 0:02:12]} e4 {[%emt 0:00:46]} 24. Nb4 {[%emt 0:00:19]} Rb5 {[%emt 0:00:46]} 25. Nd3 {[%emt 0:03:53]} exd3 {[%emt 0:01:07]} 26. Rac1 {[%emt 0:00:05]} O-O {[%emt 0:01:00]} 27. Rc7 {[%emt 0:00:17]} Re8 {[%emt 0:02:00]} 28. f4 {[%emt 0:02:39]} Re2 {[%emt 0:04:18]} 29. Rd1 {[%emt 0:01:11]} Rb6 {[%emt 0:01:48]} 30. Nf3 {[%emt 0:00:43]} Rxa2 {[%emt 0:02:28]} 31. Rxd3 {[%emt 0:00:11]} Re6 {[%emt 0:00:33]} 32. Rc8+ {[%emt 0:00:28]} Bf8 {[%emt 0:00:44]} 33. Ne5 {[%emt 0:00:54]} Ra1+ {[%emt 0:01:26]} 34. Kf2 {[%emt 0:00:06]} Ra2+ {[%emt 0:00:16]} 35. Kg3 {[%emt 0:00:12]} Kg7 {[%emt 0:01:12]} 36. Rxd4 {[%emt 0:01:36]} Bd6 {[%emt 0:00:48]} 37. Rxd5 {[%emt 0:00:18]} Bxe5 {[%emt 0:00:25]} 38. fxe5 {[%emt 0:00:32]} Rg6+ {[%emt 0:00:30]} 39. Kf4 {[%emt 0:00:01]} Rf2+ {[%emt 0:00:29]} 40. Ke3 {[%emt 0:00:14]} Rgxg2 {[%emt 0:00:13]} 41. Rd7+ {[%emt 0:00:05]} Kh6 {[%emt 0:00:28]} 42. Rxb7 {[%emt 0:00:23]} f4+ {[%emt 0:00:25]} 43. Ke4 {[%emt 0:00:20]} f3 {[%emt 0:00:49]} 44. Rc6+ {[%emt 0:00:12]} Rg6 {[%emt 0:00:28]} 45. Rxg6+ {[%emt 0:00:29]} hxg6 {[%emt 0:00:16]} 46. e6 {[%emt 0:00:08]} Rf1 {[%emt 0:00:24]} 47. e7 {[%emt 0:00:21]} f2 {[%emt 0:00:27]} 48. Kf3 {[%emt 0:00:08]} Re1 {[%emt 0:00:52]} 49. Kxf2 {[%emt 0:00:09]} Re6 {[%emt 0:00:36]} 50. Rxa7 {[%emt 0:00:20]} Kg5 {[%emt 0:00:29]} 51. b4 {[%emt 0:01:28]} Kf6 52. b5 {[%emt 0:00:12]} Kf7 {[%emt 0:00:47]} 53. Kf3 {[%emt 0:00:38]} Rb6 {[%emt 0:00:20]} 54. e8=Q+ Kxe8 {[%emt 0:00:10]} 55. Ra6 {[%emt 0:02:48]} Rxb5 {[%emt 0:00:12]} 56. Rxg6 {[%emt 0:00:06]} Rh5 {[%emt 0:00:17]} 57. Kg3 {[%emt 0:00:40]} Kf7 {[%emt 0:00:45]} 58. Rg4 {[%emt 0:00:09]} Kf6 {[%emt 0:00:48]} 59. h4 {[%emt 0:00:09]} Kf7 {[%emt 0:01:06]} 60. Rg5 {[%emt 0:00:28]} Rxg5+ {[%emt 0:00:25]} 61. hxg5 {[%emt 0:00:02]} Kg7 {[%emt 0:00:39]} 62. Kg4 {[%emt 0:00:10]} Kg6 {[%emt 0:00:59]} 63. Kh4 {[%emt 0:00:34]} Kg7 {[%emt 0:00:36]} 64. Kh5 {[%emt 0:00:19]} Kh7 {[%emt 0:00:35]} 65. g6+ {[%emt 0:00:09]} Kg8 {[%emt 0:00:18]} 66. Kg5 {[%emt 0:01:08]} Kg7 {[%emt 0:00:08]} 67. Kf5 {[%emt 0:00:05]} Kg8 {[%emt 0:00:21]} 68. Kf6 {[%emt 0:00:13]} Kf8 {[%emt 0:00:10]} 1/2-1/2

[Event "Portuguese-ch U14-20 2022"]
[Site "Fatima"]
[Date "2022.04.13"]
[Round "6.6"]
[White "Teves, Pedro"]
[Black "Oliveira, Daniela Sousa"]
[Result "1-0"]
[ECO "E06"]
[WhiteElo "1390"]
[BlackElo "1272"]
[Annotator "NA RC"]
[PlyCount "83"]
[EventDate "2022.04.10"]
[EventType "swiss"]
[EventCountry "POR"]
[SourceTitle "playchess.com"]
[Source "ChessBase"]
[SourceQuality "1"]
[TimeControl "5400+30"]

1. d4 {[%emt 0:03:48]} Nf6 {[%emt 0:00:45]} 2. Nf3 {[%emt 0:00:46]} d5 {[%emt 0:00:48]} 3. c4 {[%emt 0:00:28]} e6 {[%emt 0:01:10]} 4. g3 {[%emt 0:02:40]} Be7 {[%emt 0:01:23]} 5. Bg2 {[%emt 0:00:32]} O-O {[%emt 0:00:27]} 6. O-O {[%emt 0:00:07]} dxc4 {[%emt 0:01:25]} 7. Qc2 {[%emt 0:00:05]} b6 {[%emt 0:00:27]} 8. Qxc4 {[%emt 0:00:37]} Bb7 {[%emt 0:02:35]} 9. Bf4 {[%emt 0:04:03]} Nd5 {[%emt 0:04:41]} 10. Nfd2 {[%emt 0:14:12]} Bd6 {[%emt 0:08:16]} 11. Bxd6 {[%emt 0:08:09]} Qxd6 {[%emt 0:03:25]} 12. e4 {[%emt 0:09:03]} Ba6 {[%emt 0:06:33]} 13. Qb3 {[%emt 0:05:33]} Bxf1 {[%emt 0:03:04]} 14. Nxf1 {[%emt 0:00:06]} Qb4 {[%emt 0:02:22]} 15. exd5 {[%emt 0:00:33]} Qxb3 {[%emt 0:00:35]} 16. axb3 {[%emt 0:00:15]} exd5 {[%emt 0:01:39]} 17. Bxd5 {[%emt 0:00:14]} c6 {[%emt 0:00:11]} 18. Bf3 {[%emt 0:02:24]} Rd8 19. Nc3 {[%emt 0:16:18]} a6 {[%emt 0:11:39]} 20. Nb5 {[%emt 0:02:39]} Rc8 {[%emt 0:05:52]} 21. Ne3 {[%emt 0:06:04]} Nd7 {[%emt 0:04:26]} 22. Nd6 {[%emt 0:00:45]} Rc7 {[%emt 0:00:50]} 23. d5 {[%emt 0:00:59]} Ne5 {[%emt 0:07:56]} 24. Bg2 {[%emt 0:00:56]} Rd8 {[%emt 0:00:53]} 25. Rxa6 {[%emt 0:01:36]} g6 {[%emt 0:01:02]} 26. Ndc4 {[%emt 0:06:05]} Nxc4 {[%emt 0:05:06]} 27. bxc4 {[%emt 0:00:06]} cxd5 {[%emt 0:02:23]} 28. Bxd5 {[%emt 0:01:02]} Rb8 {[%emt 0:01:12]} 29. b3 {[%emt 0:02:33]} Kg7 {[%emt 0:00:49]} 30. Bf3 {[%emt 0:01:57]} Rc5 {[%emt 0:00:54]} 31. Ra7 {[%emt 0:01:13]} Ra5 {[%emt 0:04:04]} 32. Rd7 {[%emt 0:05:44]} Ra3 {[%emt 0:02:06]} 33. Bd5 {[%emt 0:01:41]} Rf8 {[%emt 0:00:57]} 34. Ng4 {[%emt 0:01:17]} Rxb3 {[%emt 0:01:39]} 35. Ne5 {[%emt 0:00:14]} b5 {[%emt 0:02:23]} 36. c5 {[%emt 0:03:14]} Rb1+ {[%emt 0:01:25]} 37. Kg2 {[%emt 0:00:08]} Rc1 {[%emt 0:00:44]} 38. c6 {[%emt 0:00:21]} Rb8 {[%emt 0:00:32]} 39. Rxf7+ {[%emt 0:00:34]} Kh6 {[%emt 0:00:32]} 40. Rb7 {[%emt 0:00:54]} Re8 {[%emt 0:01:10]} 41. Nf7+ {[%emt 0:00:27]} Kh5 {[%emt 0:01:05]} 42. Bf3# {[%emt 0:00:44]} 1-0

[Event "Portuguese-ch U14-20 2022"]
[Site "Fatima"]
[Date "2022.04.13"]
[Round "6.7"]
[White "Cunha, Alexandre Rodrigo Vi"]
[Black "Gage, Daniel"]
[Result "0-1"]
[ECO "B22"]
[WhiteElo "1603"]
[BlackElo "1752"]
[Annotator "NA RC"]
[PlyCount "126"]
[EventDate "2022.04.10"]
[EventType "swiss"]
[EventCountry "POR"]
[SourceTitle "playchess.com"]
[Source "ChessBase"]
[SourceQuality "1"]
[TimeControl "5400+30"]

1. e4 {[%emt 0:00:02]} c5 {[%emt 0:00:01]} 2. c3 {[%emt 0:01:22]} Nf6 {[%emt 0:00:02]} 3. e5 {[%emt 0:00:35]} Nd5 {[%emt 0:00:01]} 4. Bc4 {[%emt 0:01:36]} Nb6 {[%emt 0:00:17]} 5. Bb3 {[%emt 0:04:50]} c4 {[%emt 0:00:29]} 6. Bc2 {[%emt 0:00:15]} Nc6 {[%emt 0:00:18]} 7. Qe2 {[%emt 0:03:38]} Qc7 {[%emt 0:07:50]} 8. f4 {[%emt 0:04:27]} d6 {[%emt 0:00:23]} 9. exd6 {[%emt 0:03:48]} Qxd6 {[%emt 0:00:22]} 10. d4 {[%emt 0:03:39]} cxd3 {[%emt 0:06:52]} 11. Bxd3 {[%emt 0:03:45]} g6 {[%emt 0:07:52]} 12. Nf3 {[%emt 0:10:51]} Bg4 {[%emt 0:02:31]} 13. h3 {[%emt 0:02:18]} Bxf3 {[%emt 0:02:15]} 14. Qxf3 {[%emt 0:00:23]} Bg7 {[%emt 0:06:28]} 15. O-O {[%emt 0:02:15]} O-O {[%emt 0:06:59]} 16. Nd2 {[%emt 0:06:36]} Rfd8 {[%emt 0:13:05]} 17. Bc2 {[%emt 0:08:29]} f5 {[%emt 0:05:28]} 18. Kh1 {[%emt 0:11:00]} e5 {[%emt 0:05:26]} 19. Rd1 {[%emt 0:07:04]} Qe7 {[%emt 0:02:40]} 20. fxe5 {[%emt 0:06:58]} Nxe5 {[%emt 0:00:03]} 21. Qf1 {[%emt 0:00:36]} Qh4 {[%emt 0:11:47]} 22. Nf3 {[%emt 0:04:13]} Rxd1 {[%emt 0:02:04]} 23. Qxd1 {[%emt 0:02:12]} Nxf3 {[%emt 0:00:41]} 24. Qxf3 {[%emt 0:01:07]} Qe1+ {[%emt 0:00:09]} 25. Kh2 {[%emt 0:00:48]} Be5+ {[%emt 0:00:52]} 26. g3 {[%emt 0:00:28]} Re8 {[%emt 0:06:15]} 27. Bd3 {[%emt 0:03:54]} Kh8 {[%emt 0:04:58]} 28. Rb1 {[%emt 0:00:45]} Bb8 {[%emt 0:02:55]} 29. Bf4 {[%emt 0:04:35]} Qe6 {[%emt 0:01:00]} 30. Bxb8 {[%emt 0:00:25]} Rxb8 {[%emt 0:00:07]} 31. b3 {[%emt 0:00:42]} Nd7 {[%emt 0:00:55]} 32. Bc4 {[%emt 0:00:52]} Qe5 {[%emt 0:00:57]} 33. Rd1 {[%emt 0:00:41]} Nf6 {[%emt 0:00:18]} 34. Bd5 {[%emt 0:01:16]} b6 {[%emt 0:00:16]} 35. Rd2 {[%emt 0:00:47]} Rd8 {[%emt 0:00:08]} 36. c4 {[%emt 0:00:04]} Ne4 {[%emt 0:00:42]} 37. Re2 {[%emt 0:00:34]} Ng5 {[%emt 0:00:31]} 38. Qe3 {[%emt 0:01:01]} Qxe3 {[%emt 0:00:14]} 39. Rxe3 {[%emt 0:00:03]} Rd7 {[%emt 0:00:10]} 40. h4 {[%emt 0:00:30]} Ne4 {[%emt 0:00:13]} 41. Bxe4 {[%emt 0:00:47]} fxe4 {[%emt 0:00:04]} 42. Rxe4 {[%emt 0:00:07]} Rd2+ {[%emt 0:00:03]} 43. Kh3 {[%emt 0:00:05]} Rxa2 {[%emt 0:00:04]} 44. Re7 {[%emt 0:00:06]} Ra3 {[%emt 0:00:03]} 45. Rc7 {[%emt 0:01:53]} a5 {[%emt 0:00:23]} 46. c5 {[%emt 0:00:20]} Rxb3 {[%emt 0:00:12]} 47. c6 {[%emt 0:00:07]} Rc3 {[%emt 0:00:32]} 48. Kg4 {[%emt 0:00:42]} Rc5 {[%emt 0:00:06]} 49. Kf4 {[%emt 0:00:54]} Kg8 {[%emt 0:00:17]} 50. Rc8+ {[%emt 0:00:21]} Kf7 {[%emt 0:00:06]} 51. Rc7+ {[%emt 0:00:10]} Ke6 {[%emt 0:01:03]} 52. Rxh7 {[%emt 0:00:52]} Rxc6 {[%emt 0:00:06]} 53. Kg5 {[%emt 0:00:18]} Kd5 {[%emt 0:00:21]} 54. Rg7 {[%emt 0:00:23]} Kc4 {[%emt 0:00:34]} 55. Rxg6 {[%emt 0:00:34]} Rxg6+ {[%emt 0:00:10]} 56. Kxg6 {[%emt 0:00:02]} a4 {[%emt 0:00:07]} 57. h5 {[%emt 0:01:16]} a3 {[%emt 0:00:02]} 58. h6 {[%emt 0:00:17]} a2 {[%emt 0:00:17]} 59. h7 {[%emt 0:00:04]} a1=Q 60. g4 {[%emt 0:00:15]} Qh8 {[%emt 0:00:23]} 61. g5 {[%emt 0:00:28]} b5 {[%emt 0:00:08]} 62. Kh6 {[%emt 0:00:09]} b4 {[%emt 0:01:48]} 63. g6 {[%emt 0:00:27]} Qf6 {[%emt 0:00:18]} 0-1